fUST/lending_fUST_20240430
["ID","MTS","AMOUNT","RATE_DAILY","PERIOD"]
[324913895,1714414238200,-224.15769893,0.00014891,2]
[324913896,1714414238210,-2625.41611588,0.00014891,2]
[324913897,1714414238219,-474.89811931,0.00014891,2]
[324913898,1714414238229,-1341.74893643,0.00014891,2]
[324913899,1714414238240,-12842.3671569,0.00014891,2]
[324913900,1714414238253,-200.0,0.00014891,2]
[324913901,1714414238262,-243.53346427,0.00014891,2]
[324913902,1714414238272,-185.9439975,0.00014892,2]
[324913903,1714414238282,-435.14327418,0.00014892,2]
[324913904,1714414238292,-206.11973565,0.00014893,2]
[324913905,1714414238301,-154.89156353,0.00014893,2]
[324913906,1714414238311,-163.98400752,0.00014893,2]
[324913907,1714414238321,-156.0199725,0.00014893,2]
[324913908,1714414238331,-445.01764102,0.00014893,2]
[324913909,1714414238341,-264.30513755,0.00014893,2]
[324913910,1714414238350,-258.48620539,0.00014893,2]
[324913911,1714414238360,-502.65938513,0.00014893,2]
[324913912,1714414238369,-551.68592382,0.00014893,2]
[324913913,1714414238379,-247.75950442,0.00014893,2]
[324913914,1714414238388,-919.41140399,0.00014897,2]
[324913915,1714414238397,-1192.47877429,0.00014997,2]
[324913916,1714414238406,-386.7776689,0.0001526,2]
[324913917,1714414238416,-587.0,0.00015331,2]
[324913918,1714414238426,-587.0,0.00015416,2]
[324913919,1714414238435,-514.23297925,0.00016,2]
[324913920,1714414238444,-215.38625227,0.00016259,2]
[324913921,1714414238454,-156.68280648,0.00016259,2]
[324913922,1714414238463,-166.51980397,0.00016259,2]
[324913923,1714414238472,-271.39928444,0.00016259,2]
[324913924,1714414238481,-154.82968734,0.00016259,2]
[324913925,1714414238491,-219.61097658,0.00016259,2]
[324913926,1714414238500,-156.22497367,0.00016259,2]
[324913927,1714414238509,-244.21761044,0.00016259,2]
[324913928,1714414238518,-155.08589962,0.00016259,2]
[324913929,1714414238527,-730.61014924,0.00016259,2]
[324913930,1714414238536,-306.64058106,0.00016259,2]
[324913931,1714414238545,-156.81966225,0.00016259,2]
[324913932,1714414238554,-1445.70030918,0.0001626,2]
[324913933,1714414238563,-444.91899583,0.0001626,2]
[324913934,1714414238572,-154.81422293,0.00016261,2]
[324913935,1714414238582,-246.76362379,0.00016261,2]
[324913936,1714414238591,-186.25450795,0.00016261,2]
[324913937,1714414238600,-459.94893698,0.00016261,2]
[324913938,1714414238609,-154.95443397,0.00016261,2]
[324913939,1714414238618,-323.00644432,0.00016261,2]
[324913940,1714414238627,-158.79873753,0.00016261,2]
[324913941,1714414238636,-155.35401592,0.00016261,2]
[324913942,1714414238645,-155.03576215,0.00016261,2]
[324913943,1714414238654,-1028.37018299,0.00016261,2]
[324913944,1714414238663,-154.84515485,0.00016261,2]
[324913945,1714414238671,-161.99116159,0.00016261,2]
[324913946,1714414238680,-646.57238522,0.00016261,2]
[324913947,1714414238689,-1255.16360998,0.00016261,2]
[324913948,1714414238698,-13034.67134883,0.00016262,2]
[324913949,1714414238707,-1807.41662924,0.00016453,2]
[324913950,1714414238716,-823.0,0.00016817,2]
[324913951,1714414238725,-823.0,0.00016957,2]
[324913952,1714414238734,-202.3103984,0.00018333,2]
[324913953,1714414238742,-570.0,0.00018448,2]
[324913954,1714414238751,-603.75411,0.000185,2]
[324913955,1714414238760,-1152.0,0.00018653,2]
[324913956,1714414238769,-261.8098131,0.000189,2]
[324913957,1714414238779,-9000.0,0.00019,4]
[324913958,1714414238788,-500.0,0.00019178,2]
[324913959,1714414238797,-500.0,0.00019178,2]
[324913960,1714414238806,-500.0,0.00019178,2]
[324913961,1714414238816,-368.748,0.00019178,2]
[324913962,1714414238825,-500.0,0.00019178,2]
[324913963,1714414238836,-500.0,0.00019178,2]
[324913964,1714414238845,-500.0,0.00019178,2]
[324913965,1714414238854,-500.0,0.00019178,2]
[324913966,1714414238863,-500.0,0.00019178,2]
[324913967,1714414238873,-500.0,0.00019178,2]
[324913968,1714414238882,-160.579336,0.00019178,2]
[324913969,1714414238891,-160.9317772,0.00019178,2]
[324913970,1714414238900,-299.81571377,0.00019298,2]
[324913971,1714414238909,-154.87608677,0.00019298,2]
[324913972,1714414238920,-225.94434049,0.00019298,2]
[324913973,1714414238929,-176257.25907286,0.000193,2]
[324913974,1714414238939,-151.748716,0.000193,2]
[324913975,1714414238948,-4538.81855,0.000193,2]
[324913976,1714414238957,-4538.81855,0.000193,2]
[324913977,1714414238967,-151.0,0.000193,2]
[324913978,1714414238976,-151.0,0.000193,2]
[324913979,1714414238986,-1123.99733,0.000193,2]
[324913980,1714414238996,-1123.99733,0.000193,2]
[324913981,1714414239005,-155.48490975,0.00019799,2]
[324913982,1714414239015,-5000.0,0.000199,2]
[324913983,1714414239025,-1157.55415381,0.00019978,2]
[324913984,1714414239034,-2132.14138618,0.00019997,2]
[324913985,1714414239044,-2101.14247839,0.00019998,2]
[324913986,1714414239053,-409.22868854,0.00019998,2]
[324913987,1714414239063,-9407.08811266,0.0002,2]
[324913988,1714414239073,-212.44805755,0.0002,2]
[324913989,1714414239083,-52446.80715208,0.0002,2]
[324913990,1714414239092,-10107.23158319,0.0002,2]
[324913991,1714414239101,-241.68429594,0.0002,2]
[324913992,1714414239111,-329.16638653,0.0002,2]
[324913993,1714414239120,-5460.61782475,0.0002,2]
[324913994,1714414239130,-151.0,0.0002,2]
[324913995,1714414239139,-189.535421,0.0002,2]
[324913996,1714414239149,-189.535421,0.0002,2]
[324913997,1714414239159,-151.0,0.0002,2]
[324913998,1714414239169,-151.0,0.0002,2]
[324913999,1714414239178,-810.389295,0.0002,2]
[324914000,1714414239188,-4576.380518,0.0002,2]
[324914001,1714414239318,-810.389295,0.0002,2]
[324914002,1714414239328,-4576.380518,0.0002,2]
[324914003,1714414239339,-151.0,0.0002,2]
[324914004,1714414239348,-151.0,0.0002,2]
[324914005,1714414239357,-613.520445,0.0002,2]
[324914006,1714414239367,-151.0,0.0002,2]
[324914007,1714414239377,-613.520445,0.0002,2]
[324914008,1714414239386,-151.0,0.0002,2]
[324914009,1714414239396,-517.367002,0.0002,2]
[324914010,1714414239406,-517.367002,0.0002,2]
[324914011,1714414239415,-201.513641,0.0002,2]
[324914012,1714414239424,-201.513641,0.0002,2]
[324914013,1714414239433,-151.31843755,0.0002,2]
[324914014,1714414239444,-4538.81855,0.0002,2]
[324914015,1714414239453,-4538.81855,0.0002,2]
[324914016,1714414239463,-151.0,0.0002,2]
[324914017,1714414239472,-151.0,0.0002,2]
[324914018,1714414239483,-1123.99733,0.0002,2]
[324914019,1714414239492,-1123.99733,0.0002,2]
[324914020,1714414239502,-1807.41662924,0.0002004,2]
[324914021,1714414239511,-176.0,0.0002025,3]
[324914022,1714414239520,-1600.0,0.00020519,2]
[324914023,1714414239530,-615.794345,0.00020548,2]
[324914024,1714414239539,-529.7028294,0.00020912,2]
[324914025,1714414239548,-157.89272519,0.00020912,2]
[324914028,1714414239558,-482.52815881,0.00020912,4]
[324914029,1714414239567,-213.01228044,0.00020913,2]
[324914031,1714414239576,-10000.0,0.00021,5]
[324914033,1714414239587,-4538.81855,0.00021,2]
[324914035,1714414239597,-4538.81855,0.00021,2]
[324914037,1714414239607,-151.0,0.00021,2]
[324914039,1714414239616,-151.0,0.00021,2]
[324914041,1714414239626,-1123.99733,0.00021,2]
[324914043,1714414239635,-1123.99733,0.00021,2]
[324914044,1714414239645,-240.56,0.00021918,2]
[324914045,1714414239654,-200.46,0.00021918,2]
[324914046,1714414239664,-167.05,0.00021918,2]
[324914047,1714414239674,-835.29,0.00021918,2]
[324914048,1714414239684,-840.682397,0.00021918,2]
[324914049,1714414239694,-840.682397,0.00021918,2]
[324914051,1714414239703,-840.682397,0.00021918,2]
[324914053,1714414239711,-840.682397,0.00021918,2]
[324914054,1714414239721,-840.682397,0.00021918,2]
[324914056,1714414239730,-159.19819518,0.00022,2]
[324914058,1714414239740,-236.64272116,0.00022,2]
[324914060,1714414239751,-236.64272116,0.00022,2]
[324914062,1714414239761,-236.64272116,0.00022,2]
[324914064,1714414239771,-241.220731,0.00022466,2]
[324914066,1714414239780,-346.385761,0.00022466,2]
[324914068,1714414239789,-158.392944,0.00022466,2]
[324914070,1714414239799,-713.129427,0.00022466,2]
[324914072,1714414239808,-166.765737,0.00022466,2]
[324914074,1714414239818,-176.0,0.0002282,3]
[324914076,1714414239828,-714.0781204,0.00023,2]
[324914078,1714414239840,-1807.41662924,0.00023627,2]
[324914080,1714414239849,-261.8098131,0.000239,2]
[324914082,1714414239859,-1515.028385,0.00023989,2]
[324914084,1714414239868,-1515.028385,0.00023989,2]
[324914086,1714414239876,-151.0,0.00023989,2]
[324914088,1714414239886,-151.0,0.00023989,2]
[324914090,1714414239895,-151.0,0.00023989,2]
[324914092,1714414239904,-151.0,0.00023989,2]
[324914094,1714414239913,-189.535421,0.00023989,2]
[324914096,1714414239922,-189.535421,0.00023989,2]
[324914098,1714414239931,-151.0,0.00023989,2]
[324914100,1714414239940,-151.0,0.00023989,2]
[324914102,1714414239949,-810.389295,0.00023989,2]
[324914104,1714414239958,-4576.380518,0.00023989,2]
[324914106,1714414239967,-810.389295,0.00023989,2]
[324914108,1714414239976,-4576.380518,0.00023989,2]
[324914110,1714414239985,-151.0,0.00023989,2]
[324914112,1714414239994,-613.520445,0.00023989,2]
[324914114,1714414240003,-151.0,0.00023989,2]
[324914116,1714414240011,-613.520445,0.00023989,2]
[324914117,1714414240020,-151.0,0.00023989,2]
[324914119,1714414240030,-517.367002,0.00023989,2]
[324914121,1714414240041,-517.367002,0.00023989,2]
[324914123,1714414240050,-201.513641,0.00023989,2]
[324914124,1714414240060,-201.513641,0.00023989,2]
[324914125,1714414240069,-840.682397,0.00023989,2]
[324914127,1714414240079,-500.0,0.00024657,2]
[324914129,1714414240089,-15017.40320602,0.00024975,2]
[324914131,1714414240099,-4538.81855,0.00024975,2]
[324914133,1714414240108,-4538.81855,0.00024975,2]
[324914135,1714414240117,-151.0,0.00024975,2]
[324914137,1714414240127,-151.0,0.00024975,2]
[324914139,1714414240136,-1123.99733,0.00024975,2]
[324914141,1714414240145,-1123.99733,0.00024975,2]
[324914143,1714414240155,-154.81420441,0.00025,2]
[324914146,1714414240164,-176.0,0.0002538,3]
[324914147,1714414240174,-620.41239216,0.00026962,2]
[324914150,1714414240183,-8527.63031331,0.00027,2]
[324914152,1714414240193,-840.682397,0.00027,2]
[324914153,1714414240202,-1807.41662924,0.00027213,2]
[324914155,1714414240211,-166.666666,0.00027397,2]
[324914157,1714414240220,-50499.02907405,0.0002763,2]
[324914159,1714414240229,-151.261958,0.0002763,2]
[324914161,1714414240242,-151.0,0.0002763,2]
[324914163,1714414240252,-212.412938,0.0002763,2]
[324914166,1714414240261,-212.412938,0.0002763,2]
[324914167,1714414240270,-151.0,0.0002763,2]
[324914169,1714414240280,-151.0,0.0002763,2]
[324914171,1714414240290,-151.0,0.0002763,2]
[324914173,1714414240299,-151.0,0.0002763,2]
[324914175,1714414240309,-151.0,0.0002763,2]
[324914177,1714414240318,-151.0,0.0002763,2]
[324914179,1714414240329,-151.0,0.0002763,2]
[324914182,1714414240344,-151.0,0.0002763,2]
[324914184,1714414240358,-151.0,0.0002763,2]
[324914187,1714414240373,-854.323349,0.0002763,2]
[324914189,1714414240385,-854.323349,0.0002763,2]
[324914192,1714414240398,-192.39474,0.0002763,2]
[324914194,1714414240412,-192.39474,0.0002763,2]
[324914196,1714414240426,-192.39474,0.0002763,2]
[324914199,1714414240439,-192.39474,0.0002763,2]
[324914201,1714414240452,-721.04711,0.0002763,2]
[324914203,1714414240464,-721.04711,0.0002763,2]
[324914206,1714414240479,-721.04711,0.0002763,2]
[324914209,1714414240492,-721.04711,0.0002763,2]
[324914211,1714414240504,-440.075358,0.0002763,2]
[324914213,1714414240517,-440.075358,0.0002763,2]
[324914215,1714414240528,-440.075358,0.0002763,2]
[324914218,1714414240542,-440.075358,0.0002763,2]
[324914220,1714414240556,-151.0,0.0002763,2]
[324914223,1714414240566,-151.0,0.0002763,2]
[324914225,1714414240577,-215.857588,0.0002763,2]
[324914227,1714414240591,-215.857588,0.0002763,2]
[324914229,1714414240604,-215.857588,0.0002763,2]
[324914232,1714414240616,-215.857588,0.0002763,2]
[324914234,1714414240630,-151.0,0.0002763,2]
[324914237,1714414240643,-151.0,0.0002763,2]
[324914239,1714414240657,-151.0,0.0002763,2]
[324914242,1714414240671,-254.632697,0.0002763,2]
[324914244,1714414240683,-917.974557,0.0002763,2]
[324914246,1714414240693,-917.974557,0.0002763,2]
[324914248,1714414240703,-917.974557,0.0002763,2]
[324914251,1714414240714,-917.974557,0.0002763,2]
[324914253,1714414240727,-595.457895,0.0002763,2]
[324914256,1714414240740,-1515.028385,0.0002763,2]
[324914258,1714414240752,-595.457895,0.0002763,2]
[324914260,1714414240763,-1515.028385,0.0002763,2]
[324914262,1714414240774,-595.457895,0.0002763,2]
[324914265,1714414240786,-1515.028385,0.0002763,2]
[324914267,1714414240798,-595.457895,0.0002763,2]
[324914269,1714414240809,-1515.028385,0.0002763,2]
[324914271,1714414240819,-151.0,0.0002763,2]
[324914273,1714414240830,-193.571571,0.0002763,2]
[324914276,1714414240843,-151.0,0.0002763,2]
[324914278,1714414240853,-151.0,0.0002763,2]
[324914280,1714414240864,-151.0,0.0002763,2]
[324914282,1714414240875,-151.0,0.0002763,2]
[324914284,1714414240886,-151.0,0.0002763,2]
[324914287,1714414240897,-151.0,0.0002763,2]
[324914289,1714414240909,-189.535421,0.0002763,2]
[324914291,1714414240920,-189.535421,0.0002763,2]
[324914294,1714414240933,-189.535421,0.0002763,2]
[324914296,1714414240944,-189.535421,0.0002763,2]
[324914298,1714414240956,-151.0,0.0002763,2]
[324914300,1714414240967,-151.0,0.0002763,2]
[324914303,1714414240979,-151.0,0.0002763,2]
[324914305,1714414240992,-156.368303,0.0002763,2]
[324914307,1714414241004,-810.389295,0.0002763,2]
[324914309,1714414241015,-810.389295,0.0002763,2]
[324914312,1714414241027,-810.389295,0.0002763,2]
[324914314,1714414241039,-4576.380518,0.0002763,2]
[324914316,1714414241050,-810.389295,0.0002763,2]
[324914318,1714414241062,-4576.380518,0.0002763,2]
[324914320,1714414241074,-4576.380518,0.0002763,2]
[324914323,1714414241085,-4576.380518,0.0002763,2]
[324914325,1714414241097,-151.0,0.0002763,2]
[324914327,1714414241108,-151.0,0.0002763,2]
[324914329,1714414241119,-613.520445,0.0002763,2]
[324914332,1714414241131,-613.520445,0.0002763,2]
[324914334,1714414241143,-613.520445,0.0002763,2]
[324914336,1714414241154,-151.0,0.0002763,2]
[324914338,1714414241165,-613.520445,0.0002763,2]
[324914340,1714414241177,-151.0,0.0002763,2]
[324914343,1714414241189,-151.0,0.0002763,2]
[324914345,1714414241200,-151.0,0.0002763,2]
[324914347,1714414241211,-517.367002,0.0002763,2]
[324914349,1714414241223,-517.367002,0.0002763,2]
[324914352,1714414241235,-517.367002,0.0002763,2]
[324914354,1714414241251,-517.367002,0.0002763,2]
[324914356,1714414241262,-201.513641,0.0002763,2]
[324914358,1714414241274,-201.513641,0.0002763,2]
[324914360,1714414241286,-201.513641,0.0002763,2]
[324914363,1714414241298,-201.513641,0.0002763,2]
[324914365,1714414241308,-4538.81855,0.0002763,2]
[324914367,1714414241319,-4538.81855,0.0002763,2]
[324914369,1714414241330,-4538.81855,0.0002763,2]
[324914371,1714414241343,-4538.81855,0.0002763,2]
[324914374,1714414241355,-151.0,0.0002763,2]
[324914376,1714414241366,-151.0,0.0002763,2]
[324914378,1714414241377,-151.0,0.0002763,2]
[324914380,1714414241388,-151.0,0.0002763,2]
[324914383,1714414241400,-1123.99733,0.0002763,2]
[324914385,1714414241411,-1123.99733,0.0002763,2]
[324914387,1714414241422,-1123.99733,0.0002763,2]
[324914389,1714414241434,-1123.99733,0.0002763,2]
[324914392,1714414241445,-840.682397,0.0002763,2]
[324914394,1714414241457,-840.682397,0.0002763,2]
[324914396,1714414241468,-176.0,0.0002795,3]
[324914398,1714414241479,-220.92131871,0.00028,2]
[324914400,1714414241491,-151.0,0.00028,2]
[324914402,1714414241503,-151.0,0.00028,2]
[324914405,1714414241514,-151.0,0.00028,2]
[324914407,1714414241526,-151.0,0.00028,2]
[324914409,1714414241537,-854.323349,0.00028,2]
[324914411,1714414241549,-854.323349,0.00028,2]
[324914414,1714414241561,-189.535421,0.00028,2]
[324914416,1714414241573,-189.535421,0.00028,2]
[324914418,1714414241584,-151.0,0.00028,2]
[324914420,1714414241598,-810.389295,0.00028,2]
[324914423,1714414241610,-810.389295,0.00028,2]
[324914425,1714414241621,-4576.380518,0.00028,2]
[324914444,1714414241754,-4576.380518,0.00028,2]
[324914448,1714414241817,-151.0,0.00028,2]
[324914450,1714414241827,-199.785048,0.00028,2]
[324914452,1714414241837,-4538.81855,0.00028,2]
[324914454,1714414241847,-4538.81855,0.00028,2]
[324914456,1714414241857,-151.0,0.00028,2]
[324914458,1714414241866,-223.458975,0.00028,2]
[324914460,1714414241876,-1123.99733,0.00028,2]
[324914462,1714414241886,-1123.99733,0.00028,2]
[324914465,1714414241895,-840.682397,0.00028,2]
[324914467,1714414241904,-166.666666,0.00028038,2]
[324914469,1714414241914,-620.02061961,0.00028382,2]
[324914470,1714414241923,-241.220731,0.00028493,2]
[324914473,1714414241934,-346.385761,0.00028493,2]
[324914475,1714414241943,-713.129427,0.00028493,2]
[324914476,1714414241954,-166.666666,0.00028679,2]
[324914477,1714414241963,-166.666666,0.00029321,2]
[324914478,1714414241971,-5886.71844402,0.000299,2]
[324914479,1714414241981,-721.04711,0.000299,2]
[324914480,1714414241990,-721.04711,0.000299,2]
[324914481,1714414241999,-440.075358,0.000299,2]
[324914482,1714414242009,-440.075358,0.000299,2]
[324914483,1714414242018,-151.0,0.000299,2]
[324914484,1714414242028,-215.857588,0.000299,2]
[324914485,1714414242037,-215.857588,0.000299,2]
[324914486,1714414242046,-151.0,0.000299,2]
[324914487,1714414242056,-917.974557,0.000299,2]
[324914488,1714414242065,-917.974557,0.000299,2]
[324914489,1714414242074,-595.457895,0.000299,2]
[324914490,1714414242083,-1515.028385,0.000299,2]
[324914491,1714414242094,-595.457895,0.000299,2]
[324914492,1714414242104,-1515.028385,0.000299,2]
[324914493,1714414242112,-151.0,0.000299,2]
[324914494,1714414242121,-151.0,0.000299,2]
[324914496,1714414242130,-613.520445,0.000299,2]
[324914498,1714414242140,-613.520445,0.000299,2]
[324914500,1714414242149,-151.0,0.000299,2]
[324914501,1714414242159,-517.367002,0.000299,2]
[324914503,1714414242168,-517.367002,0.000299,2]
[324914505,1714414242178,-201.513641,0.000299,2]
[324914508,1714414242187,-201.513641,0.000299,2]
[324914509,1714414242196,-840.682397,0.000299,2]
[324914511,1714414242206,-166.666666,0.00029962,2]
[324914513,1714414242215,-159.0,0.0003,2]
[324914516,1714414242224,-176.0,0.0003052,5]
[324914517,1714414242234,-166.666666,0.00030603,2]
[324914519,1714414242245,-153.0,0.00030617,2]
[324914522,1714414242255,-1807.41662924,0.000308,2]
[324914524,1714414242265,-44444.0,0.000309,3]
[324914526,1714414242274,-192.39474,0.000309,2]
[324914528,1714414242283,-192.39474,0.000309,2]
[324914530,1714414242292,-721.04711,0.000309,2]
[324914532,1714414242301,-721.04711,0.000309,2]
[324914536,1714414242310,-440.075358,0.000309,2]
[324914541,1714414242320,-440.075358,0.000309,2]
[324914543,1714414242330,-151.0,0.000309,2]
[324914544,1714414242341,-215.857588,0.000309,2]
[324914546,1714414242350,-215.857588,0.000309,2]
[324914549,1714414242359,-151.0,0.000309,2]
[324914553,1714414242368,-917.974557,0.000309,2]
[324914557,1714414242377,-917.974557,0.000309,2]
[324914560,1714414242386,-595.457895,0.000309,2]
[324914562,1714414242396,-1515.028385,0.000309,2]
[324914565,1714414242407,-595.457895,0.000309,2]
[324914567,1714414242418,-1515.028385,0.000309,2]
[324914568,1714414242428,-151.0,0.000309,2]
[324914571,1714414242438,-151.0,0.000309,2]
[324914573,1714414242448,-189.535421,0.000309,2]
[324914575,1714414242458,-189.535421,0.000309,2]
[324914577,1714414242468,-151.0,0.000309,2]
[324914578,1714414242479,-810.389295,0.000309,2]
[324914581,1714414242488,-810.389295,0.000309,2]
[324914582,1714414242498,-4576.380518,0.000309,2]
[324914584,1714414242507,-4576.380518,0.000309,2]
[324914588,1714414242517,-151.0,0.000309,2]
[324914592,1714414242527,-613.520445,0.000309,2]
[324914597,1714414242536,-613.520445,0.000309,2]
[324914602,1714414242546,-151.0,0.000309,2]
[324914607,1714414242555,-517.367002,0.000309,2]
[324914612,1714414242565,-517.367002,0.000309,2]
[324914615,1714414242574,-201.513641,0.000309,2]
[324914618,1714414242583,-201.513641,0.000309,2]
[324914621,1714414242595,-4538.81855,0.000309,2]
[324914624,1714414242603,-4538.81855,0.000309,2]
[324914626,1714414242612,-151.0,0.000309,2]
[324914628,1714414242622,-1123.99733,0.000309,2]
[324914630,1714414242632,-1123.99733,0.000309,2]
[324914633,1714414242641,-840.682397,0.000309,2]
[324914636,1714414242650,-30126.13710486,0.00031,2]
[324914638,1714414242660,-151.0,0.00031,2]
[324914640,1714414242669,-212.412938,0.00031,2]
[324914642,1714414242678,-212.412938,0.00031,2]
[324914644,1714414242687,-226.802442,0.00031,2]
[324914646,1714414242697,-151.0,0.00031,2]
[324914648,1714414242706,-151.0,0.00031,2]
[324914650,1714414242715,-151.0,0.00031,2]
[324914652,1714414242724,-151.0,0.00031,2]
[324914654,1714414242734,-165.542015,0.00031,2]
[324914656,1714414242743,-151.0,0.00031,2]
[324914658,1714414242752,-151.0,0.00031,2]
[324914660,1714414242761,-151.0,0.00031,2]
[324914662,1714414242771,-854.323349,0.00031,2]
[324914664,1714414242780,-854.323349,0.00031,2]
[324914666,1714414242790,-854.323349,0.00031,2]
[324914668,1714414242798,-854.323349,0.00031,2]
[324914670,1714414242808,-192.39474,0.00031,2]
[324914672,1714414242818,-192.39474,0.00031,2]
[324914674,1714414242827,-192.39474,0.00031,2]
[324914676,1714414242839,-192.39474,0.00031,2]
[324914678,1714414242847,-721.04711,0.00031,2]
[324914680,1714414242857,-721.04711,0.00031,2]
[324914682,1714414242866,-721.04711,0.00031,2]
[324914684,1714414242875,-721.04711,0.00031,2]
[324914686,1714414242884,-440.075358,0.00031,2]
[324914688,1714414242893,-440.075358,0.00031,2]
[324914690,1714414242902,-440.075358,0.00031,2]
[324914692,1714414242912,-440.075358,0.00031,2]
[324914694,1714414242921,-278.85994,0.00031,2]
[324914696,1714414242931,-215.857588,0.00031,2]
[324914698,1714414242940,-215.857588,0.00031,2]
[324914700,1714414242949,-215.857588,0.00031,2]
[324914702,1714414242958,-215.857588,0.00031,2]
[324914704,1714414242968,-151.0,0.00031,2]
[324914706,1714414242977,-151.0,0.00031,2]
[324914708,1714414242986,-917.974557,0.00031,2]
[324914710,1714414242996,-917.974557,0.00031,2]
[324914712,1714414243005,-917.974557,0.00031,2]
[324914714,1714414243015,-917.974557,0.00031,2]
[324914716,1714414243023,-595.457895,0.00031,2]
[324914718,1714414243033,-1515.028385,0.00031,2]
[324914720,1714414243043,-595.457895,0.00031,2]
[324914722,1714414243053,-1515.028385,0.00031,2]
[324914724,1714414243063,-595.457895,0.00031,2]
[324914726,1714414243073,-595.457895,0.00031,2]
[324914728,1714414243082,-1515.028385,0.00031,2]
[324914730,1714414243093,-1515.028385,0.00031,2]
[324914732,1714414243102,-151.0,0.00031,2]
[324914734,1714414243112,-151.0,0.00031,2]
[324914736,1714414243121,-184.527818,0.00031,2]
[324914738,1714414243130,-189.535421,0.00031,2]
[324914740,1714414243139,-189.535421,0.00031,2]
[324914742,1714414243148,-189.535421,0.00031,2]
[324914744,1714414243158,-189.535421,0.00031,2]
[324914746,1714414243167,-151.0,0.00031,2]
[324914748,1714414243177,-151.0,0.00031,2]
[324914750,1714414243186,-810.389295,0.00031,2]
[324914753,1714414243195,-810.389295,0.00031,2]
[324914755,1714414243205,-810.389295,0.00031,2]
[324914757,1714414243214,-4576.380518,0.00031,2]
[324914759,1714414243224,-810.389295,0.00031,2]
[324914761,1714414243233,-4576.380518,0.00031,2]
[324914763,1714414243244,-4576.380518,0.00031,2]
[324914765,1714414243255,-4576.380518,0.00031,2]
[324914767,1714414243265,-151.0,0.00031,2]
[324914769,1714414243274,-613.520445,0.00031,2]
[324914771,1714414243283,-151.0,0.00031,2]
[324914773,1714414243293,-613.520445,0.00031,2]
[324914775,1714414243303,-613.520445,0.00031,2]
[324914778,1714414243312,-613.520445,0.00031,2]
[324914779,1714414243321,-218.797184,0.00031,2]
[324914782,1714414243332,-517.367002,0.00031,2]
[324914784,1714414243343,-517.367002,0.00031,2]
[324914785,1714414243352,-517.367002,0.00031,2]
[324914788,1714414243361,-517.367002,0.00031,2]
[324914790,1714414243370,-258.058594,0.00031,2]
[324914792,1714414243380,-201.513641,0.00031,2]
[324914794,1714414243389,-201.513641,0.00031,2]
[324914796,1714414243398,-201.513641,0.00031,2]
[324914798,1714414243409,-201.513641,0.00031,2]
[324914800,1714414243419,-4538.81855,0.00031,2]
[324914802,1714414243428,-4538.81855,0.00031,2]
[324914804,1714414243438,-4538.81855,0.00031,2]
[324914806,1714414243448,-4538.818548,0.00031,2]
[324914808,1714414243458,-151.0,0.00031,2]
[324914810,1714414243468,-151.0,0.00031,2]
[324914812,1714414243477,-1123.99733,0.00031,2]
[324914814,1714414243486,-1123.99733,0.00031,2]
[324914816,1714414243495,-1123.99733,0.00031,2]
[324914818,1714414243504,-1123.997325,0.00031,2]